lending/lending_fUSD_20250527
["ID","MTS","AMOUNT","RATE_DAILY","PERIOD"]
[362453924,1748304582417,1780.0,0.0002601,120]
[362453930,1748304632408,-296.04,0.00024455,2]
[362453931,1748304632420,-229.4575034,0.0002601,14]
[362453932,1748304632432,-155.23,0.00026348,120]
[362453933,1748304632443,-269.63768245,0.00026358,2]
[362453934,1748304632455,-520.59379764,0.00026358,2]
[362453945,1748304638122,-209.76851991,0.00026358,2]
[362453946,1748304638133,-150.0,0.00026406,7]
[362453947,1748304638144,-296.04,0.00026719,2]
[362453948,1748304638155,-1000.0,0.000268,2]
[362453949,1748304638165,-261.63212,0.00026849,6]
[362453950,1748304638175,-169.0,0.00027,7]
[362453951,1748304638186,-207.4,0.00027261,2]
[362453952,1748304638195,-300.0,0.00027276,2]
[362453953,1748304638205,-300.0,0.00027276,2]
[362453954,1748304638215,-1200.0,0.00027276,2]
[362453955,1748304638225,-1000.0,0.00027277,2]
[362453956,1748304638235,-242.65936009,0.00027277,2]
[362453957,1748304638290,-650.21790189,0.00027277,2]
[362453958,1748304638386,-107.12273802,0.00027277,2]
[362453959,1748304638396,-1369.49435949,0.00027277,2]
[362453960,1748304638407,-1093.9,0.00027277,2]
[362453983,1748304640389,-276.15000001,0.00027277,2]
[362453986,1748304640461,-6380.2835818,0.00027277,2]
[362453987,1748304640475,-1314.39371286,0.00027277,2]
[362453988,1748304640484,-160.15863857,0.00027277,2]
[362453989,1748304640494,-2294.41271119,0.00027278,2]
[362453990,1748304640503,-299.52237798,0.00027278,2]
[362453991,1748304640512,-4841.27219723,0.00027287,2]
[362453992,1748304640524,-158.72780277,0.00027287,2]
[362453993,1748304640533,-356.1553506,0.00027288,2]
[362453994,1748304640542,-806.25,0.000273,2]
[362453995,1748304640552,-10434.22165408,0.0002734,2]
[362453996,1748304640561,-2294.41271118,0.00027341,2]
[362453997,1748304640570,-4000.0,0.00027349,2]
[362453998,1748304640579,-200.0,0.00027349,2]
[362453999,1748304640588,-152.59344608,0.0002735,2]
[362454000,1748304640598,-1762.94818247,0.00027367,2]
[362454001,1748304640607,-151.0,0.00027371,2]
[362454002,1748304640616,-1115.157653,0.00027371,2]
[362454003,1748304640625,-151.0,0.00027371,2]
[362454004,1748304640634,-668.65185757,0.00027371,2]
[362454005,1748304640643,-300.0,0.00027371,2]
[362454006,1748304640653,-300.0,0.00027371,2]
[362454007,1748304640662,-300.0,0.00027371,2]
[362454008,1748304640671,-300.0,0.00027371,2]
[362454009,1748304640679,-300.0,0.00027371,2]
[362454010,1748304640690,-300.0,0.00027371,2]
[362454011,1748304640699,-169.0,0.00027371,2]
[362454012,1748304640708,-668.65185757,0.00027371,2]
[362454013,1748304640718,-500.0,0.00027373,2]
[362454014,1748304640727,-500.0,0.00027373,2]
[362454015,1748304640736,-500.0,0.00027373,2]
[362454016,1748304640745,-500.0,0.00027373,2]
[362454017,1748304640754,-500.0,0.00027373,2]
[362454018,1748304640763,-286.12919493,0.00027373,2]
[362454019,1748304641026,-179.02470137,0.00027375,2]
[362454020,1748304641041,-169.55474892,0.00027376,3]
[362454021,1748304641050,-118528.48503316,0.00027376,3]
[362454022,1748304641059,-775.196,0.00027376,16]
[362454023,1748304641068,-100566.7684015,0.00027377,2]
[362454024,1748304641109,-1756.14720692,0.00027377,2]
[362454025,1748304641152,-874.19750716,0.00027377,2]
[362454031,1748304643269,-516.60505394,0.0002735,2]
[362454032,1748304643279,-1671.19494606,0.00027377,2]
[362454033,1748304643442,-1123.93522586,0.00027377,2]
[362454035,1748304646132,-37666.96810108,0.00027377,2]
[362454036,1748304646144,-9234.50177422,0.00027377,2]
[362454037,1748304646155,-8682.98691361,0.00027377,2]
[362454038,1748304646167,-4579.02061757,0.00027377,2]
[362454039,1748304646199,-5306.9928,0.00027377,2]
[362454071,1748305508375,1911.7304,0.0002,2]
[362454088,1748305705142,200.32,0.00022539,120]
[362454167,1748305832293,-646.70203414,0.00019899,2]
[362454168,1748305832305,-553.29796586,0.00019899,2]
[362454169,1748305832315,-7285.4296361,0.000199,2]
[362454170,1748305832326,-179.95016649,0.000199,2]
[362454171,1748305832335,-169.31056075,0.000199,2]
[362454172,1748305832345,-500.0,0.00019973,2]
[362454173,1748305832354,-500.0,0.00019973,2]
[362454174,1748305832363,-500.0,0.00019973,2]
[362454175,1748305832373,-500.0,0.00019973,2]
[362454176,1748305832382,-500.78382127,0.00019973,2]
[362454177,1748305832391,-5254.2168988,0.0001999,2]
[362454178,1748305832406,-781.9877507,0.0001999,2]
[362454179,1748305832417,-3343.7087062,0.0001999,2]
[362454180,1748305832428,-770.34336717,0.0001999,2]
[362454181,1748305832437,-155.54,0.0001999,2]
[362454182,1748305832447,-155.54,0.0001999,2]
[362454183,1748305832456,-88.22912887,0.00019999,2]
[362454184,1748305832476,-90.7955725,0.00019999,2]
[362454185,1748305832486,-341.53075741,0.00019999,2]
[362454186,1748305832513,-142.08727787,0.00019999,2]
[362454187,1748305832522,-777.12428598,0.00019999,2]
[362454188,1748305832533,-1029.29698763,0.00019999,2]
[362454189,1748305832568,-383.57872639,0.00019999,2]
[362454190,1748305832578,-72.83085565,0.0002,2]
[362454227,1748305838315,-2918.33725075,0.0002,2]
[362454228,1748305838403,-674.21531975,0.0002,2]
[362454433,1748305840554,-1241994.80642723,0.0002,2]
[362454435,1748305840564,-3229.19,0.0002,2]
[362454437,1748305840573,-1037574.78649747,0.0002,2]
[362454439,1748305840583,-4000.0,0.0002,4]
[362454441,1748305840592,-302.85040442,0.000205,2]
[362454443,1748305840602,-11690.85083865,0.000205,2]
[362454445,1748305840611,-500.0,0.00020521,2]
[362454447,1748305840621,-1000.0,0.00020521,2]
[362454449,1748305840630,-1000.0,0.00020521,2]
[362454451,1748305840639,-500.0,0.00020521,2]
[362454453,1748305840649,-7285.42963608,0.00020722,2]
[362454455,1748305840659,-214.18999575,0.00021,4]
[362454457,1748305840668,-1500.0,0.00021068,2]
[362454459,1748305840677,-11690.85083858,0.00021286,2]
[362454461,1748305840686,-169.31056073,0.00021316,2]
[362454463,1748305840695,-395.0,0.00021386,2]
[362454465,1748305840704,-302.8504044,0.00021499,2]
[362454467,1748305840714,-2748.97754833,0.00021544,2]
[362454469,1748305840725,-602.7,0.00021544,2]
[362454472,1748305840744,-299.064938,0.00021544,2]
[362454474,1748305840755,-3150.99106236,0.00021544,2]
[362454476,1748305840766,-483.69608739,0.00021544,2]
[362454478,1748305840775,-1584.27456482,0.00021616,2]
[362454480,1748305840784,-1680.0,0.00021774,2]
[362454482,1748305840794,-5790.40319058,0.000218,2]
[362454486,1748305840828,-4692.7587,0.000218,2]
[362454489,1748305840840,-1979.49754114,0.000218,2]
[362454491,1748305840852,-1433.34056828,0.000218,2]
[362454493,1748305840864,-214.18999574,0.000219,6]
[362454495,1748305840873,-500.0,0.00021918,2]
[362454497,1748305840883,-435.804348,0.00021918,2]
[362454499,1748305840892,-157.59,0.00022068,2]
[362454501,1748305840902,-157.59,0.00022068,2]
[362454502,1748305840911,-157.59,0.00022068,2]
[362454504,1748305840921,-157.59,0.00022068,2]
[362454506,1748305840930,-157.59,0.00022068,2]
[362454508,1748305840940,-157.59,0.00022068,2]
[362454510,1748305840950,-157.59,0.00022068,2]
[362454512,1748305840960,-157.59,0.00022068,2]
[362454514,1748305840968,-157.59,0.00022068,2]
[362454516,1748305840978,-157.59,0.00022068,2]
[362454518,1748305840987,-7339.20860449,0.00022071,2]
[362454520,1748305841002,-4351.64223409,0.00022071,2]
[362454522,1748305841014,-157.59,0.00022084,7]
[362454523,1748305841023,-157.59,0.00022084,7]
[362454525,1748305841032,-157.59,0.00022084,7]
[362454527,1748305841044,-157.59,0.00022084,7]
[362454529,1748305841053,-157.59,0.00022084,7]
[362454530,1748305841062,-157.59,0.00022084,7]
[362454532,1748305841071,-157.59,0.00022084,7]
[362454533,1748305841080,-157.59,0.00022084,7]
[362454535,1748305841088,-157.59,0.00022084,7]
[362454537,1748305841097,-157.59,0.00022084,7]
[362454540,1748305841106,-5562.0,0.000223,3]
[362454542,1748305841116,-7285.42963608,0.00022366,2]
[362454543,1748305841126,-302.8504044,0.00022498,2]
[362454546,1748305841135,-1000.0,0.00022671,2]
[362454548,1748305841144,-169.31056073,0.00022731,2]
[362454549,1748305841153,-5562.0,0.000228,5]
[362454551,1748305841163,-11690.85083858,0.00022857,2]
[362454553,1748305841172,-214.18999574,0.000229,8]
[362454555,1748305841181,-1852.87228033,0.00023188,2]
[362454604,1748305843580,-300.0,0.00023188,2]
[362454605,1748305843725,-5132.55735575,0.00023188,2]
[362454606,1748305843737,-260.97,0.00023363,2]
[362454607,1748305843747,-302.8504044,0.00023496,2]
[362454610,1748305843757,-11690.85083858,0.00023643,2]
[362454614,1748305843767,-2351.0,0.00023826,2]
[362454618,1748305843777,-214.18999574,0.000239,10]
[362454621,1748305843787,-7285.42963608,0.00024009,2]
[362454624,1748305843797,-299.33,0.00024118,2]
[362454625,1748305843807,-169.31056073,0.00024147,2]
[362454627,1748305843817,-11690.85083858,0.00024428,2]
[362454629,1748305843826,-155.23,0.00024443,2]
[362454631,1748305843836,-302.8504044,0.00024495,2]
[362454633,1748305843845,-3229.19,0.000245,7]
[362454634,1748305843857,-260.97,0.00024732,2]
[362454636,1748305843867,-155.54,0.0002479,2]
[362454638,1748305843877,-550359.140757,0.000248,2]
[362454639,1748305843887,-380.665778,0.000248,7]
[362454640,1748305843896,-380.665778,0.000248,7]
[362454641,1748305843906,-151.0,0.000248,7]
[362454642,1748305843916,-151.0,0.000248,7]
[362454643,1748305843926,-58142.19,0.000248,7]
[362454644,1748305843935,-151.0,0.000248,7]
[362454645,1748305843945,-7285.42963608,0.00024831,2]
[362454646,1748305843955,-500.0,0.00024833,2]
[362454648,1748305843965,-500.0,0.00024833,2]
[362454649,1748305843974,-500.74291645,0.00024833,2]
[362454650,1748305843984,-155.54,0.0002489,2]
[362454651,1748305843993,-101978.44572525,0.000249,2]
[362454654,1748305846194,-3484.94862269,0.000249,2]
[362454655,1748305846207,-3900.65469987,0.000249,2]
[362454656,1748305846352,-1186.768785,0.000249,2]
[362454771,1748307031571,-170.87,0.00019999,2]
[362454772,1748307031581,-151.0,0.00019999,2]
[362454773,1748307031590,-206.0,0.00020405,2]
[362454774,1748307031600,-170.87,0.00021369,2]
[362454775,1748307031609,-489.84768777,0.00022102,2]
[362454776,1748307031620,-1443.88606141,0.00022102,2]
[362454777,1748307031731,-263.69908288,0.00022102,2]
[362454793,1748307037575,-638.4791475,0.00022102,2]
[362454794,1748307037585,-505.9,0.00022331,2]
[362454795,1748307037596,-300.0,0.00022666,2]
[362454796,1748307037607,-939.12085247,0.00022666,2]
[362454829,1748307042714,-260.87914753,0.00022666,2]
[362454830,1748307042724,-502.44,0.00022667,2]
[362454831,1748307042733,-509.0,0.00022667,2]
[362454832,1748307042742,-7.28085247,0.00022667,2]
[362454833,1748307042757,-482.62230386,0.00022667,2]
[362454834,1748307042768,-5.75684367,0.00022667,2]
[362454835,1748307042778,-298.76135861,0.00022667,2]
[362454836,1748307042865,-195.04864139,0.00022667,2]
[362454837,1748307042874,-258.29771427,0.00022667,2]
[362454845,1748307045426,-236.65228573,0.00022667,2]
[362454846,1748307045440,-170.87,0.00022739,2]
[362454847,1748307045450,-509.2,0.00022861,2]
[362454848,1748307045460,-502.54,0.00022861,2]
[362454849,1748307045470,-491.51,0.00022949,2]
[362454850,1748307045481,-503.35,0.00023102,2]
[362454851,1748307045492,-170.87,0.00024109,2]
[362454852,1748307045502,-276.9020904,0.00024169,2]
[362454853,1748307045511,-284.36,0.00024432,2]
[362454854,1748307045521,-6536.38577726,0.00024657,2]
[362454855,1748307045531,-1680.0,0.00024728,2]
[362454856,1748307045541,-354.92097503,0.00024875,2]
[362454857,1748307045550,-500.0,0.000249,2]
[362454858,1748307045559,-4000.0,0.000249,2]
[362454859,1748307045569,-200.0,0.000249,2]
[362454860,1748307045579,-214.18999574,0.000249,12]
[362454861,1748307045588,-1000.0,0.00025071,2]
[362454862,1748307045598,-200.0,0.00025149,2]
[362454863,1748307045608,-200.0,0.000254,2]
[362454864,1748307045618,-3991.85123901,0.00025405,2]
[362454865,1748307045628,-3850.07,0.00025419,2]
[362454866,1748307045637,-170.87,0.00025479,2]
[362454867,1748307045647,-150.0,0.00025513,7]
[362454868,1748307045656,-789.62,0.00025579,2]
[362454869,1748307045666,-151.61,0.00025646,2]
[362454870,1748307045675,-200.0,0.00025654,2]
[362454871,1748307045685,-1008.50872076,0.00025883,2]
[362454872,1748307045695,-214.18999574,0.000259,14]
[362454873,1748307045704,-1000.0,0.00026,2]
[362454874,1748307045715,-330.0,0.00026009,2]
[362454875,1748307045724,-206.0,0.00026061,10]
[362454876,1748307045735,-558.1422112,0.00026236,2]
[362454877,1748307045745,-806.25,0.00026301,2]
[362454878,1748307045754,-806.25,0.00026301,2]
[362454879,1748307045764,-1611.5,0.00026301,2]
[362454880,1748307045774,-250.0,0.0002635,2]
[362454881,1748307045784,-155.23,0.0002635,120]
[362454882,1748307045794,-157.59,0.00026394,2]
[362454883,1748307045804,-157.59,0.00026409,2]
[362454884,1748307045813,-157.59,0.00026423,2]
[362454885,1748307045823,-157.59,0.00026438,2]
[362454886,1748307045832,-157.59,0.00026453,2]
[362454887,1748307045841,-157.59,0.00026467,2]
[362454888,1748307045851,-157.59,0.00026482,2]
[362454889,1748307045860,-157.59,0.00026497,2]
[362454890,1748307045869,-157.59,0.00026511,2]
[362454891,1748307045878,-157.59,0.00026526,2]
[362454892,1748307045888,-284.36,0.00026696,2]
[362454893,1748307045897,-351.586318,0.00026849,6]
[362454894,1748307045907,-170.87,0.00026849,2]
[362454895,1748307045916,-150.0,0.00026892,2]
[362454896,1748307045926,-150.0,0.00026892,2]
[362454897,1748307045936,-150.0,0.00026892,2]
[362454898,1748307045945,-150.0,0.00026892,2]
[362454899,1748307045954,-500.0,0.00026892,2]
[362454900,1748307045963,-207.4,0.00026892,2]
[362454901,1748307045972,-1115.157653,0.00026892,2]
[362454902,1748307045982,-151.0,0.00026892,2]
[362454903,1748307045993,-300.0,0.00026892,2]
[362454904,1748307046002,-300.0,0.00026892,2]
[362454905,1748307046013,-300.0,0.00026892,2]
[362454906,1748307046023,-300.0,0.00026892,2]
[362454907,1748307046032,-668.65185757,0.00026892,2]
[362454908,1748307046041,-668.65185757,0.00026892,2]
[362454909,1748307046050,-300.0,0.00026892,2]
[362454910,1748307046059,-300.0,0.00026892,2]
[362454911,1748307046068,-169.0,0.00026892,2]
[362454912,1748307046078,-151.0,0.00026892,2]
[362454913,1748307046087,-153.49119643,0.00026892,2]
[362454914,1748307046097,-628.5602,0.000269,2]
[362454915,1748307046106,-2088.979,0.000269,2]
[362454916,1748307046373,-214.18999574,0.000269,16]
[362454917,1748307046382,-150.0,0.00026919,2]
[362454918,1748307046392,-150.0,0.00026919,2]
[362454919,1748307046402,-150.0,0.00026919,2]
[362454920,1748307046411,-500.0,0.00026919,2]
[362454921,1748307046421,-223.79607025,0.00026947,2]
[362454922,1748307046430,-150.0,0.00026947,2]
[362454923,1748307046441,-150.0,0.00026947,2]
[362454924,1748307046451,-500.0,0.00026947,2]
[362454925,1748307046460,-150.0,0.00026974,2]
[362454926,1748307046471,-150.0,0.00026974,2]
[362454927,1748307046483,-500.0,0.00026974,2]
[362454928,1748307046494,-2351.0,0.00026978,2]
[362454929,1748307046504,-159.55,0.00027,3]
[362454930,1748307046514,-146210.58661316,0.00027,2]
[362454931,1748307046524,-249.999999,0.00027,3]
[362454932,1748307046534,-197.08217457,0.00027002,2]
[362454933,1748307046544,-250.0,0.00027002,2]
[362454934,1748307046555,-169.31056073,0.00027098,2]
[362454935,1748307046566,-1000.0,0.000271,2]
[362454936,1748307046576,-2185.62889086,0.000271,2]
[362454937,1748307046586,-340.22,0.00027123,2]
[362454938,1748307046596,-166.59,0.00027123,2]
[362454939,1748307046606,-151.4252022,0.00027146,2]
[362454940,1748307046616,-2185.62889082,0.00027152,2]
[362454941,1748307046625,-65989.5918164,0.0002719,2]
[362454942,1748307046636,-21996.5306055,0.00027193,2]
[362454943,1748307046646,-2185.62889082,0.00027205,2]
[362454944,1748307046655,-2185.62889082,0.00027257,2]
[362454945,1748307046665,-21996.5306055,0.00027258,2]
[362454946,1748307046675,-1612.0,0.0002726,2]
[362454947,1748307046685,-158.7278,0.00027277,2]
[362454948,1748307046698,-43993.0612109,0.0002728,2]
[362454949,1748307046707,-4899.82477333,0.0002728,2]
[362454950,1748307046717,-163.75269402,0.00027287,2]
[362454951,1748307046726,-414.13412862,0.00027287,2]
[362454952,1748307046736,-68575.00045982,0.0002729,2]
[362454953,1748307046746,-4899.82477333,0.00027301,2]
[362454954,1748307046756,-2185.62889082,0.00027309,2]
[362454955,1748307046765,-4899.82477333,0.00027337,2]
[362454956,1748307046775,-151.0,0.00027338,7]
[362454957,1748307046784,-151.0,0.00027338,7]
[362454958,1748307046793,-151.0,0.00027338,7]
[362454959,1748307046803,-152.59344608,0.0002735,2]
[362454960,1748307046813,-43993.0612109,0.00027357,2]
[362454961,1748307046824,-29398.94864,0.00027357,2]
[362454962,1748307046833,-2185.62889082,0.00027362,2]
[362454963,1748307046843,-21996.5306055,0.00027367,2]
[362454964,1748307046852,-19599.2990933,0.00027367,2]
[362454965,1748307046862,-4899.82477333,0.00027367,2]
[362454966,1748307046872,-151.0,0.00027367,7]
[362454967,1748307046883,-151.0,0.00027367,7]
[362454968,1748307046893,-151.0,0.00027367,7]
[362454969,1748307046903,-151.822226,0.00027367,7]
[362454970,1748307046913,-151.0,0.00027367,7]
[362454971,1748307046922,-151.0,0.00027367,7]
[362454972,1748307046931,-151.0,0.00027367,7]
[362454973,1748307046942,-151.0,0.00027367,7]
[362454974,1748307046952,-151.0,0.00027367,7]
[362454975,1748307046961,-151.0,0.00027367,7]
[362454976,1748307046971,-151.0,0.00027367,7]
[362454977,1748307046980,-155.824089,0.00027367,7]
[362454978,1748307046990,-151.0,0.00027367,7]
[362454979,1748307047000,-342.5992,0.00027367,7]
[362454980,1748307047009,-342.5992,0.00027367,7]
[362454981,1748307047026,-500.0,0.00027373,2]
[362454982,1748307047035,-287.31637834,0.00027373,2]
[362454983,1748307047046,-500.0,0.00027373,2]
[362454984,1748307047055,-500.0,0.00027373,2]
[362454985,1748307047065,-505.00798943,0.00027373,2]
[362454986,1748307047075,-9799.64954666,0.00027374,2]
[362454987,1748307047084,-338.53262469,0.00027376,2]
[362454988,1748307047094,-241961.83666,0.00027377,2]
[362454989,1748307047104,-28251.91655286,0.00027377,2]
[362454990,1748307047145,-2545.92389134,0.00027377,2]
[362454991,1748307047156,-869.7,0.00027377,2]
[362454992,1748307047185,-1064.5897,0.00027377,2]
[362454993,1748307047208,-26293.6568117,0.00027377,2]
[362454994,1748307047220,-8028.76408456,0.00027377,2]
[362454996,1748307582732,250.0,0.00015,2]
[362455437,1748308208387,207.862085,7.945e-05,2]
[362455442,1748308231802,-482.18867,0.00023788,2]
[362455443,1748308231826,-17.89133,0.00023788,2]
[362455444,1748308231836,-200.0,0.00024288,2]
[362455445,1748308231846,-250.0,0.00024288,2]
[362455446,1748308231856,-276.98,0.00024294,2]
[362455447,1748308231866,-300.0,0.00024787,2]
[362455448,1748308231876,-98.5831706,0.00024787,2]
[362455449,1748308231888,-201.4168294,0.00024787,2]
[362455450,1748308231898,-641.8698257,0.00024787,2]
[362455451,1748308231923,-558.1301743,0.00024787,2]
[362455452,1748308231933,-141.401722,0.00024788,2]
[362455453,1748308231947,-348.998278,0.00024788,2]
[362455454,1748308231957,-495.18,0.00024788,2]
[362455455,1748308231967,-500.5,0.00024788,2]
[362455456,1748308231978,-493.02,0.00024788,2]
[362455457,1748308231991,-505.67,0.00024788,2]
[362455458,1748308232001,-497.29,0.00024788,2]
[362455459,1748308232011,-508.16,0.00024788,2]
[362455460,1748308232022,-501.4,0.00024788,2]
[362455461,1748308232032,-503.63,0.00024788,2]
[362455463,1748308232045,-496.32,0.00024788,2]
[362455465,1748308232056,-491.81,0.00024788,2]
[362455466,1748308232066,-504.73,0.00024788,2]
[362455467,1748308232077,-505.93,0.00024788,2]
[362455468,1748308232087,-506.87,0.00024788,2]
[362455469,1748308232099,-509.62,0.00024788,2]
[362455471,1748308232108,-491.04,0.00024788,2]
[362455473,1748308232118,-500.73,0.00024788,2]
[362455475,1748308232128,-502.61,0.00024788,2]
[362455477,1748308232137,-492.36,0.00024788,2]
[362455479,1748308232148,-494.04,0.00024788,2]
[362455481,1748308232158,-491.3,0.00024788,2]
[362455483,1748308232167,-502.4,0.00024788,2]
[362455485,1748308232177,-496.04,0.00024788,2]
[362455487,1748308232187,-491.01,0.00024788,2]
[362455489,1748308232196,-490.34,0.00024788,2]
[362455491,1748308232206,-496.47,0.00024788,2]
[362455493,1748308232216,-490.98,0.00024788,2]
[362455495,1748308232226,-500.96,0.00024788,2]
[362455497,1748308232236,-506.81,0.00024788,2]
[362455499,1748308232247,-502.22,0.00024788,2]
[362455501,1748308232257,-494.6,0.00024788,2]
[362455503,1748308232267,-490.33,0.00024788,2]
[362455505,1748308232278,-503.86,0.00024788,2]
[362455507,1748308232288,-490.68732766,0.00024788,2]
[362455510,1748308232317,-6.55267234,0.00024788,2]
[362455512,1748308232327,-287.39129216,0.00024788,2]
[362455514,1748308232339,-215.96870784,0.00024788,2]
[362455517,1748308232349,-491.36,0.00024788,2]
[362455520,1748308232358,-503.46,0.00024788,2]
[362455524,1748308232369,-504.18,0.00024788,2]
[362455526,1748308232379,-504.23,0.00024788,2]
[362455527,1748308232389,-385.40956889,0.00024788,2]
[362455530,1748308232401,-112.78043111,0.00024788,2]
[362455532,1748308232411,-140.75328183,0.00024788,2]
[362455534,1748308232422,-356.06671817,0.00024788,2]
[362455536,1748308232432,-498.9,0.00024788,2]
[362455538,1748308232442,-490.6,0.00024788,2]
[362455540,1748308232452,-133.70307643,0.00024788,2]
[362455544,1748308232479,-333.97727723,0.00024788,2]
[362455855,1748308237769,-300.0,0.00024787,2]
[362455856,1748308237779,-32.32964634,0.00024788,2]
[362455857,1748308237789,-20.51745915,0.00024788,2]
[362455858,1748308237804,-474.24254085,0.00024788,2]
[362455859,1748308237815,-501.26,0.00024788,2]
[362455860,1748308237825,-501.74,0.00024788,2]
[362455861,1748308237835,-498.99,0.00024788,2]
[362455862,1748308237845,-497.8,0.00024788,2]
[362455863,1748308237854,-183.56878626,0.00024788,2]
[362455864,1748308237939,-324.34121374,0.00024788,2]
[362455865,1748308237951,-494.36,0.00024788,2]
[362455866,1748308237960,-500.4,0.00024788,2]
[362455867,1748308237970,-499.17,0.00024788,2]
[362455868,1748308237981,-508.7,0.00024788,2]
[362455869,1748308237991,-503.51,0.00024788,2]
[362455870,1748308238001,-500.38,0.00024788,2]
[362455872,1748308238010,-502.31,0.00024788,2]
[362455874,1748308238019,-496.38,0.00024788,2]
[362455876,1748308238029,-492.83,0.00024788,2]
[362455878,1748308238038,-492.31,0.00024788,2]
[362455880,1748308238049,-507.89,0.00024788,2]
[362455882,1748308238059,-496.74,0.00024788,2]
[362455884,1748308238068,-508.32,0.00024788,2]
[362455886,1748308238078,-495.11,0.00024788,2]
[362455888,1748308238087,-492.66,0.00024788,2]
[362455890,1748308238096,-495.48,0.00024788,2]
[362455892,1748308238106,-508.36,0.00024788,2]
[362455894,1748308238116,-491.31,0.00024788,2]
[362455896,1748308238126,-507.12,0.00024788,2]
[362455898,1748308238135,-507.2,0.00024788,2]
[362455900,1748308238145,-497.3,0.00024788,2]
[362455902,1748308238155,-506.73,0.00024788,2]
[362455904,1748308238164,-508.73,0.00024788,2]
[362455906,1748308238173,-496.3,0.00024788,2]
[362455908,1748308238183,-317.40833121,0.00024788,2]
[362455911,1748308238198,-181.32166879,0.00024788,2]
[362455912,1748308238207,-499.82,0.00024788,2]
[362455913,1748308238218,-502.35,0.00024788,2]
[362455914,1748308238227,-508.63,0.00024788,2]
[362455915,1748308238236,-507.89,0.00024788,2]
[362455916,1748308238245,-492.92,0.00024788,2]
[362455917,1748308238529,-496.22,0.00024788,2]
[362455918,1748308238540,-494.51,0.00024788,2]
[362455919,1748308238552,-207.4,0.00026015,2]
[362455920,1748308238561,-399.43,0.00026078,2]
[362455921,1748308238571,-1000.0,0.00026121,2]
[362455922,1748308238581,-150.0,0.00026165,2]
[362455923,1748308238591,-200.0,0.00026167,2]
[362455924,1748308238601,-250.0,0.00026167,2]
[362455925,1748308238611,-250.0,0.00026167,2]
[362455926,1748308238621,-172.21,0.00026171,2]
[362455927,1748308238631,-5459.61412467,0.00026174,2]
[362455937,1748308239792,-7890.08786962,0.00026174,2]
[362455938,1748308239804,-4000.0,0.00026184,2]
[362455939,1748308239814,-150.0,0.00026316,7]
[362455940,1748308239824,-369.0,0.00026476,2]
[362455941,1748308239833,-276.98,0.00026558,2]
[362455942,1748308239843,-316.427686,0.00026829,6]
[362455943,1748308239852,-230.3323,0.000269,2]
[362455944,1748308239862,-1000.0,0.000269,2]
[362455945,1748308239872,-214.18999574,0.000269,16]
[362455946,1748308239882,-226.0,0.00026981,2]
[362455947,1748308239891,-350.00054039,0.00027,2]
[362455948,1748308239902,-150.0,0.00027,120]
[362455949,1748308239917,-453.7,0.00027123,2]
[362455950,1748308239926,-164.55,0.00027141,2]
[362455951,1748308239936,-500.0,0.00027151,2]
[362455952,1748308239947,-151.0,0.00027176,2]
[362455953,1748308239957,-1115.157653,0.00027176,2]
[362455954,1748308239966,-228.97287844,0.00027176,2]
[362455955,1748308239975,-668.65185757,0.00027176,2]
[362455956,1748308239986,-668.65185757,0.00027176,2]
[362455957,1748308239995,-420.0,0.00027176,2]
[362455958,1748308240005,-22240.2432,0.00027192,2]
[362455959,1748308240015,-5595.74913954,0.00027223,2]